fUSD/lending_fUSD_20240420
["ID","MTS","AMOUNT","RATE_DAILY","PERIOD"]
[322994888,1713579050725,-500.0,0.00015342,2]
[322994889,1713579050734,-500.0,0.00015342,2]
[322994890,1713579050744,-1008.0,0.00015342,2]
[322994891,1713579050754,-1362.13,0.00015342,2]
[322994892,1713579050763,-500.0,0.00015342,2]
[322994893,1713579050773,-892.59,0.00015342,2]
[322994894,1713579050783,-500.0,0.00015342,2]
[322994895,1713579050793,-500.0,0.00015342,2]
[322994896,1713579050803,-500.0,0.00015342,2]
[322994897,1713579050812,-500.0,0.00015342,2]
[322994898,1713579050822,-549.45,0.00015342,2]
[322994899,1713579050832,-1655.88,0.00015342,2]
[322994900,1713579050841,-500.0,0.00015342,2]
[322994901,1713579050851,-500.0,0.00015342,2]
[322994902,1713579050860,-500.0,0.00015342,2]
[322994903,1713579050870,-1191.11,0.00015342,2]
[322994904,1713579050879,-500.0,0.00015342,2]
[322994905,1713579050889,-500.0,0.00015342,2]
[322994906,1713579050899,-663.48,0.00015342,2]
[322994907,1713579050908,-500.0,0.00015342,2]
[322994908,1713579050917,-1136.3,0.00015342,2]
[322994909,1713579050927,-1042.17,0.00015342,2]
[322994910,1713579050938,-500.0,0.00015342,2]
[322994911,1713579050947,-745.64,0.00015342,2]
[322994912,1713579050960,-500.0,0.00015342,2]
[322994913,1713579050970,-687.52,0.00015342,2]
[322994914,1713579050980,-552.61,0.00015342,2]
[322994915,1713579050990,-982.98,0.00015342,2]
[322994916,1713579051001,-500.0,0.00015342,2]
[322994917,1713579051010,-500.0,0.00015342,2]
[322994918,1713579051019,-957.04,0.00015342,2]
[322994919,1713579051029,-500.73384435,0.00015342,2]
[322994920,1713579051039,-1044.94,0.00015342,2]
[322994921,1713579051049,-500.0,0.00015342,2]
[322994922,1713579051059,-686.31,0.00015342,2]
[322994923,1713579051068,-942.31,0.00015342,2]
[322994924,1713579051077,-551.67,0.00015342,2]
[322994925,1713579051087,-500.0,0.00015342,2]
[322994926,1713579051096,-500.0,0.00015342,2]
[322994927,1713579051106,-503.26473158,0.00015342,2]
[322994928,1713579051116,-500.0,0.00015342,2]
[322994929,1713579051126,-1356.24,0.00015342,2]
[322994930,1713579051136,-500.0,0.00015342,2]
[322994931,1713579051146,-1122.97,0.00015342,2]
[322994932,1713579051155,-534.82,0.00015342,2]
[322994933,1713579051165,-500.0,0.00015342,2]
[322994934,1713579051175,-500.0,0.00015342,2]
[322994935,1713579051185,-720.77,0.00015342,2]
[322994936,1713579051195,-980.07,0.00015342,2]
[322994937,1713579051205,-500.0,0.00015342,2]
[322994938,1713579051213,-968.05,0.00015342,2]
[322994939,1713579051222,-500.0,0.00015342,2]
[322994940,1713579051231,-500.0,0.00015342,2]
[322994941,1713579051240,-500.0,0.00015342,2]
[322994942,1713579051249,-500.0,0.00015342,2]
[322994943,1713579051259,-489.65370128,0.00015342,2]
[322994944,1713579051268,-1185.03,0.00015342,2]
[322994945,1713579051277,-518.04,0.00015342,2]
[322994946,1713579051286,-500.0,0.00015342,2]
[322994947,1713579051296,-698.13,0.00015342,2]
[322994948,1713579051305,-500.0,0.00015342,2]
[322994949,1713579051315,-500.0,0.00015342,2]
[322994950,1713579051324,-500.0,0.00015342,2]
[322994951,1713579051334,-730.92,0.00015342,2]
[322994952,1713579051343,-500.0,0.00015342,2]
[322994953,1713579051353,-500.0,0.00015342,2]
[322994954,1713579051362,-557.43,0.00015342,2]
[322994955,1713579051371,-808.03,0.00015342,2]
[322994956,1713579051381,-500.0,0.00015342,2]
[322994957,1713579051392,-500.0,0.00015342,2]
[322994958,1713579051401,-500.0,0.00015342,2]
[322994959,1713579051744,-500.0,0.00015342,2]
[322994960,1713579051754,-500.0,0.00015342,2]
[322994961,1713579051763,-500.0,0.00015342,2]
[322994962,1713579051774,-500.0,0.00015342,2]
[322994963,1713579051784,-500.0,0.00015342,2]
[322994964,1713579051793,-500.0,0.00015342,2]
[322994965,1713579051802,-500.0,0.00015342,2]
[322994966,1713579051813,-787.95,0.00015342,2]
[322994967,1713579051823,-583.13,0.00015342,2]
[322994968,1713579051833,-2025.44,0.00015342,2]
[322994969,1713579051843,-500.0,0.00015342,2]
[322994970,1713579051854,-500.0,0.00015342,2]
[322994971,1713579051863,-500.0,0.00015342,2]
[322994972,1713579051874,-581.54,0.00015342,2]
[322994973,1713579051884,-500.0,0.00015342,2]
[322994974,1713579051893,-509.14,0.00015342,2]
[322994975,1713579051903,-1358.53,0.00015342,2]
[322994976,1713579051914,-500.0,0.00015342,2]
[322994977,1713579051924,-764.94,0.00015342,2]
[322994978,1713579051933,-500.0,0.00015342,2]
[322994979,1713579051945,-698.17,0.00015342,2]
[322994980,1713579051959,-500.0,0.00015342,2]
[322994981,1713579051969,-696.66,0.00015342,2]
[322994982,1713579051981,-500.0,0.00015342,2]
[322994983,1713579051991,-1005.85,0.00015342,2]
[322994984,1713579052002,-185.75316677,0.00015342,2]
[322994985,1713579052011,-513.42291167,0.00015342,2]
[322994986,1713579052021,-825.46,0.00015342,2]
[322994987,1713579052031,-500.0,0.00015342,2]
[322994988,1713579052041,-500.0,0.00015342,2]
[322994989,1713579052051,-500.0,0.00015342,2]
[322994990,1713579052062,-522.29149905,0.00015342,2]
[322994991,1713579052071,-843.47,0.00015342,2]
[322994992,1713579052081,-520.16,0.00015342,2]
[322994993,1713579052090,-567.61,0.00015342,2]
[322994994,1713579052099,-698.86,0.00015342,2]
[322994995,1713579052112,-500.0,0.00015342,2]
[322994996,1713579052123,-500.0,0.00015342,2]
[322994997,1713579052134,-944.86,0.00015342,2]
[322994998,1713579052143,-1059.37,0.00015342,2]
[322994999,1713579052154,-500.0,0.00015342,2]
[322995000,1713579052164,-500.0,0.00015342,2]
[322995001,1713579052175,-500.0,0.00015342,2]
[322995002,1713579052185,-749.73,0.00015342,2]
[322995003,1713579052195,-500.0,0.00015342,2]
[322995004,1713579052204,-917.6,0.00015342,2]
[322995005,1713579052214,-1072.34,0.00015342,2]
[322995006,1713579052223,-500.0,0.00015342,2]
[322995007,1713579052233,-860.0,0.00015342,2]
[322995008,1713579052242,-1485.03,0.00015342,2]
[322995009,1713579052251,-525.64,0.00015342,2]
[322995010,1713579052262,-374.97,0.00015342,2]
[322995011,1713579052271,-680.73,0.00015342,2]
[322995012,1713579052281,-500.0,0.00015342,2]
[322995013,1713579052291,-1264.82,0.00015342,2]
[322995014,1713579052300,-729.37,0.00015342,2]
[322995015,1713579052309,-500.0,0.00015342,2]
[322995016,1713579052318,-727.65,0.00015342,2]
[322995017,1713579052328,-500.0,0.00015342,2]
[322995018,1713579052337,-1727.75,0.00015342,2]
[322995019,1713579052346,-500.0,0.00015342,2]
[322995020,1713579052357,-500.0,0.00015342,2]
[322995021,1713579052366,-500.0,0.00015342,2]
[322995022,1713579052376,-592.93,0.00015342,2]
[322995023,1713579052386,-738.56,0.00015342,2]
[322995024,1713579052395,-500.0,0.00015342,2]
[322995025,1713579052407,-650.19,0.00015342,2]
[322995026,1713579052417,-500.0,0.00015342,2]
[322995027,1713579052426,-500.0,0.00015342,2]
[322995028,1713579052435,-549.52,0.00015342,2]
[322995029,1713579052445,-428.86489319,0.00015342,2]
[322995030,1713579052454,-500.0,0.00015342,2]
[322995031,1713579052464,-624.79,0.00015342,2]
[322995032,1713579052475,-764.27,0.00015342,2]
[322995033,1713579052486,-617.6,0.00015342,2]
[322995034,1713579052497,-500.0,0.00015342,2]
[322995035,1713579052506,-1007.17,0.00015342,2]
[322995036,1713579052517,-1103.77,0.00015342,2]
[322995037,1713579052527,-500.0,0.00015342,2]
[322995038,1713579052539,-500.0,0.00015342,2]
[322995039,1713579052550,-500.0,0.00015342,2]
[322995040,1713579052561,-733.56,0.00015342,2]
[322995041,1713579052570,-500.0,0.00015342,2]
[322995042,1713579052582,-580.84,0.00015342,2]
[322995043,1713579052591,-500.0,0.00015342,2]
[322995044,1713579052600,-500.0,0.00015342,2]
[322995045,1713579052610,-500.0,0.00015342,2]
[322995046,1713579052621,-1063.99,0.00015342,2]
[322995047,1713579052633,-1406.93,0.00015342,2]
[322995048,1713579052644,-501.78,0.00015342,2]
[322995049,1713579052654,-500.0,0.00015342,2]
[322995050,1713579052664,-500.0,0.00015342,2]
[322995051,1713579052674,-739.15,0.00015342,2]
[322995052,1713579052684,-787.94,0.00015342,2]
[322995053,1713579052695,-500.0,0.00015342,2]
[322995054,1713579052705,-500.0,0.00015342,2]
[322995055,1713579052715,-893.96,0.00015342,2]
[322995056,1713579052726,-2172.57,0.00015342,2]
[322995057,1713579052735,-500.0,0.00015342,2]
[322995058,1713579052746,-736.6,0.00015342,2]
[322995059,1713579052757,-500.0,0.00015342,2]
[322995060,1713579052770,-1141.21,0.00015342,2]
[322995061,1713579052779,-503.37888612,0.00015342,2]
[322995062,1713579052788,-504.25993276,0.00015342,2]
[322995063,1713579052798,-504.72399977,0.00015342,2]
[322995064,1713579052810,-703.46,0.00015342,2]
[322995065,1713579052819,-500.0,0.00015342,2]
[322995066,1713579052830,-500.0,0.00015342,2]
[322995067,1713579052841,-500.0,0.00015342,2]
[322995068,1713579052851,-500.0,0.00015342,2]
[322995069,1713579052860,-500.0,0.00015342,2]
[322995070,1713579052871,-500.0,0.00015342,2]
[322995071,1713579052881,-500.0,0.00015342,2]
[322995072,1713579052891,-1421.99,0.00015342,2]
[322995073,1713579052900,-1600.55,0.00015342,2]
[322995074,1713579052909,-567.31,0.00015342,2]
[322995075,1713579052920,-500.0,0.00015342,2]
[322995076,1713579052931,-500.0,0.00015342,2]
[322995077,1713579052942,-500.0,0.00015342,2]
[322995078,1713579052955,-500.0,0.00015342,2]
[322995079,1713579052964,-1086.24,0.00015342,2]
[322995080,1713579052975,-580.07,0.00015342,2]
[322995081,1713579052984,-624.26,0.00015342,2]
[322995082,1713579052994,-500.0,0.00015342,2]
[322995083,1713579053004,-1562.3,0.00015342,2]
[322995084,1713579053014,-500.0,0.00015342,2]
[322995085,1713579053024,-503.31931399,0.00015342,2]
[322995086,1713579053034,-500.0,0.00015342,2]
[322995087,1713579053044,-500.0,0.00015342,2]
[322995088,1713579053053,-600.21,0.00015342,2]
[322995089,1713579053062,-500.0,0.00015342,2]
[322995090,1713579053071,-536.26864434,0.00015342,2]
[322995091,1713579053081,-500.0,0.00015342,2]
[322995092,1713579053090,-960.01,0.00015342,2]
[322995093,1713579053099,-608.38,0.00015342,2]
[322995094,1713579053109,-227.42947541,0.00015342,2]
[322995095,1713579053118,-500.0,0.00015342,2]
[322995096,1713579053127,-500.0,0.00015342,2]
[322995097,1713579053137,-504.94890668,0.00015342,2]
[322995098,1713579053146,-500.0,0.00015342,2]
[322995099,1713579053155,-519.65,0.00015342,2]
[322995100,1713579053165,-734.55,0.00015342,2]
[322995101,1713579053174,-505.02589149,0.00015342,2]
[322995102,1713579053183,-500.0,0.00015342,2]
[322995103,1713579053198,-500.0,0.00015342,2]
[322995104,1713579053208,-689.56,0.00015342,2]
[322995105,1713579053217,-150.0,0.00015342,2]
[322995106,1713579053227,-500.0,0.00015342,2]
[322995107,1713579053236,-2190.26,0.00015342,2]
[322995108,1713579053245,-511.16,0.00015342,2]
[322995109,1713579053254,-500.0,0.00015342,2]
[322995110,1713579053264,-500.0,0.00015342,2]
[322995111,1713579053273,-1323.14,0.00015342,2]
[322995112,1713579053282,-751.87,0.00015342,2]
[322995113,1713579053291,-500.0,0.00015342,2]
[322995114,1713579053301,-918.49,0.00015342,2]
[322995115,1713579053310,-571.69,0.00015342,2]
[322995116,1713579053319,-500.0,0.00015342,2]
[322995117,1713579053329,-581.73,0.00015342,2]
[322995118,1713579053338,-510.16,0.00015342,2]
[322995119,1713579053348,-500.0,0.00015342,2]
[322995120,1713579053357,-500.0,0.00015342,2]
[322995121,1713579053366,-818.23,0.00015342,2]
[322995122,1713579053376,-933.08,0.00015342,2]
[322995123,1713579053385,-2219.08,0.00015342,2]
[322995124,1713579053394,-592.47,0.00015342,2]
[322995125,1713579053403,-726.42,0.00015342,2]
[322995126,1713579053413,-500.0,0.00015342,2]
[322995127,1713579053421,-1811.63,0.00015342,2]
[322995128,1713579053431,-2385.3,0.00015342,2]
[322995129,1713579053445,-500.0,0.00015342,2]
[322995130,1713579053454,-1945.39,0.00015342,2]
[322995131,1713579053463,-611.56,0.00015342,2]
[322995132,1713579053474,-801.66,0.00015342,2]
[322995133,1713579053484,-500.0,0.00015342,2]
[322995134,1713579053493,-1199.9,0.00015342,2]
[322995135,1713579053502,-500.0,0.00015342,2]
[322995136,1713579053512,-1477.68,0.00015342,2]
[322995137,1713579053522,-725.71,0.00015342,2]
[322995138,1713579053531,-1319.08,0.00015342,2]
[322995139,1713579053541,-500.0,0.00015342,2]
[322995140,1713579053552,-570.59,0.00015342,2]
[322995141,1713579053563,-500.0,0.00015342,2]
[322995142,1713579053573,-704.58,0.00015342,2]
[322995143,1713579053585,-2004.17,0.00015342,2]
[322995144,1713579053595,-851.86,0.00015342,2]
[322995145,1713579053604,-500.0,0.00015342,2]
[322995146,1713579053614,-500.0,0.00015342,2]
[322995147,1713579053623,-1313.21,0.00015342,2]
[322995148,1713579053633,-503.7,0.00015342,2]
[322995149,1713579053642,-500.0,0.00015342,2]
[322995150,1713579053651,-832.04,0.00015342,2]
[322995151,1713579053660,-547.32,0.00015342,2]
[322995152,1713579053670,-518.49,0.00015342,2]
[322995153,1713579053679,-782.27,0.00015342,2]
[322995154,1713579053690,-500.0,0.00015342,2]
[322995155,1713579053699,-501.27755509,0.00015342,2]
[322995156,1713579053709,-500.0,0.00015342,2]
[322995157,1713579053718,-578.89,0.00015342,2]
[322995158,1713579053728,-576.2,0.00015342,2]
[322995159,1713579053739,-1914.45,0.00015342,2]
[322995160,1713579053750,-1739.24,0.00015342,2]
[322995161,1713579053761,-500.0,0.00015342,2]
[322995162,1713579053770,-500.0,0.00015342,2]
[322995163,1713579053781,-717.03,0.00015342,2]
[322995164,1713579053791,-500.0,0.00015342,2]
[322995165,1713579053801,-963.48,0.00015342,2]
[322995166,1713579053811,-632.81,0.00015342,2]
[322995167,1713579053821,-500.0,0.00015342,2]
[322995168,1713579053832,-500.0,0.00015342,2]
[322995169,1713579053842,-500.0,0.00015342,2]
[322995170,1713579053852,-1691.16,0.00015342,2]
[322995171,1713579053862,-500.0,0.00015342,2]
[322995172,1713579053872,-613.93,0.00015342,2]
[322995173,1713579053884,-501.87680403,0.00015342,2]
[322995174,1713579053894,-244.14086125,0.00015342,2]
[322995175,1713579053904,-500.0,0.00015342,2]
[322995176,1713579053913,-500.0,0.00015342,2]
[322995177,1713579053923,-609.02,0.00015342,2]
[322995178,1713579053934,-500.0,0.00015342,2]
[322995179,1713579053945,-500.0,0.00015342,2]
[322995180,1713579053956,-1395.17,0.00015342,2]
[322995181,1713579053965,-500.0,0.00015342,2]
[322995182,1713579053975,-500.0,0.00015342,2]
[322995183,1713579053985,-500.0,0.00015342,2]
[322995184,1713579053995,-2100.47,0.00015342,2]
[322995185,1713579054006,-500.0,0.00015342,2]
[322995186,1713579054015,-500.0,0.00015342,2]
[322995187,1713579054024,-914.86,0.00015342,2]
[322995188,1713579054036,-500.0,0.00015342,2]
[322995189,1713579054045,-1922.68,0.00015342,2]
[322995190,1713579054054,-500.0,0.00015342,2]
[322995191,1713579054065,-500.0,0.00015342,2]
[322995192,1713579054074,-500.0,0.00015342,2]
[322995193,1713579054084,-500.0,0.00015342,2]
[322995194,1713579054094,-339.38374954,0.00015342,2]
[322995195,1713579054103,-1060.83,0.00015342,2]
[322995196,1713579054112,-500.0,0.00015342,2]
[322995197,1713579054123,-519.14188584,0.00015342,2]
[322995198,1713579054132,-500.0,0.00015342,2]
[322995199,1713579054230,-558.99,0.00015342,2]
[322995200,1713579054240,-548.8,0.00015342,2]
[322995201,1713579054249,-1107.45,0.00015342,2]
[322995202,1713579054258,-504.16860699,0.00015342,2]
[322995203,1713579054268,-847.73,0.00015342,2]
[322995204,1713579054278,-645.96,0.00015342,2]
[322995205,1713579054287,-654.34,0.00015342,2]
[322995206,1713579054297,-5898.13,0.00015342,2]
[322995207,1713579054306,-500.0,0.00015342,2]
[322995208,1713579054317,-500.0,0.00015342,2]
[322995209,1713579054326,-2079.81,0.00015342,2]
[322995210,1713579054335,-2176.21,0.00015342,2]
[322995211,1713579054345,-500.0,0.00015342,2]
[322995212,1713579054354,-681.11,0.00015342,2]
[322995213,1713579054363,-3194.77,0.00015342,2]
[322995214,1713579054374,-9218.64,0.00015342,2]
[322995215,1713579054383,-500.0,0.00015342,2]
[322995216,1713579054393,-2045.84,0.00015342,2]
[322995217,1713579054406,-592.52,0.00015342,2]
[322995218,1713579054417,-500.0,0.00015342,2]
[322995219,1713579054427,-1129.51,0.00015342,2]
[322995220,1713579054439,-2159.94,0.00015342,2]
[322995221,1713579054449,-1018.58,0.00015342,2]
[322995222,1713579054458,-500.0,0.00015342,2]
[322995223,1713579054467,-500.0,0.00015342,2]
[322995224,1713579054477,-500.0,0.00015342,2]
[322995225,1713579054487,-500.0,0.00015342,2]
[322995226,1713579054496,-4670.42,0.00015342,2]
[322995227,1713579054507,-500.0,0.00015342,2]
[322995228,1713579054517,-500.0,0.00015342,2]
[322995229,1713579054527,-500.0,0.00015342,2]
[322995230,1713579054537,-11851.22,0.00015342,2]
[322995231,1713579054548,-500.0,0.00015342,2]
[322995232,1713579054558,-1669.09,0.00015342,2]
[322995233,1713579054568,-1896.82,0.00015342,2]
[322995234,1713579054580,-500.0,0.00015342,2]
[322995235,1713579054589,-500.0,0.00015342,2]
[322995236,1713579054599,-936.89,0.00015342,2]
[322995237,1713579054608,-500.0,0.00015342,2]
[322995238,1713579054617,-500.0,0.00015342,2]
[322995239,1713579054626,-500.0,0.00015342,2]
[322995240,1713579054636,-1381.85,0.00015342,2]
[322995241,1713579054644,-500.0,0.00015342,2]
[322995242,1713579054653,-3936.25,0.00015342,2]
[322995243,1713579054662,-588.47,0.00015342,2]
[322995244,1713579054672,-878.69,0.00015342,2]
[322995245,1713579054681,-870.03,0.00015342,2]
[322995246,1713579054691,-4350.14,0.00015342,2]
[322995247,1713579054700,-1558.53,0.00015342,2]
[322995248,1713579054709,-500.0,0.00015342,2]
[322995249,1713579054718,-209.69979376,0.00015342,2]
[322995250,1713579054727,-500.0,0.00015342,2]
[322995251,1713579054737,-3487.98,0.00015342,2]
[322995252,1713579054746,-500.0,0.00015342,2]
[322995253,1713579054755,-500.0,0.00015342,2]
[322995254,1713579054764,-1905.68,0.00015342,2]
[322995255,1713579054773,-1782.89,0.00015342,2]
[322995256,1713579054782,-858.58,0.00015342,2]
[322995257,1713579054791,-500.0,0.00015342,2]
[322995258,1713579054800,-1181.13,0.00015342,2]
[322995259,1713579054809,-3687.92,0.00015342,2]
[322995260,1713579054818,-839.54,0.00015342,2]
[322995261,1713579054827,-1873.47,0.00015342,2]
[322995262,1713579054837,-549.64,0.00015342,2]
[322995263,1713579054846,-2720.89,0.00015342,2]
[322995264,1713579054855,-2115.49,0.00015342,2]
[322995265,1713579054864,-609.03,0.00015342,2]
[322995266,1713579054873,-500.0,0.00015342,2]
[322995267,1713579054885,-2337.14,0.00015342,2]
[322995268,1713579054894,-500.0,0.00015342,2]
[322995269,1713579054903,-1284.3,0.00015342,2]
[322995270,1713579054913,-540.69,0.00015342,2]
[322995271,1713579054922,-12224.81,0.00015342,2]
[322995272,1713579054930,-1255.23,0.00015342,2]
[322995273,1713579054941,-500.0,0.00015342,2]
[322995274,1713579054950,-500.0,0.00015342,2]
[322995275,1713579054963,-3500.27,0.00015342,2]
[322995276,1713579054971,-34543.58,0.00015342,2]
[322995277,1713579054980,-612.24112044,0.00015342,2]
[322995278,1713579054989,-500.0,0.00015342,2]
[322995279,1713579054999,-2914.96,0.00015342,2]
[322995280,1713579055008,-1465.64,0.00015342,2]
[322995281,1713579055017,-500.0,0.00015342,2]
[322995282,1713579055026,-618.52,0.00015342,2]
[322995283,1713579055035,-821.52,0.00015342,2]
[322995284,1713579055045,-2673.28,0.00015342,2]
[322995285,1713579055054,-1098.53,0.00015342,2]
[322995286,1713579055063,-500.0,0.00015342,2]
[322995287,1713579055071,-7338.38,0.00015342,2]
[322995288,1713579055081,-2874.42,0.00015342,2]
[322995289,1713579055090,-529.51,0.00015342,2]
[322995290,1713579055099,-1812.59,0.00015342,2]
[322995291,1713579055108,-500.0,0.00015342,2]
[322995292,1713579055118,-500.0,0.00015342,2]
[322995293,1713579055127,-500.0,0.00015342,2]
[322995294,1713579055138,-1689.24,0.00015342,2]
[322995295,1713579055148,-29829.87,0.00015342,2]
[322995296,1713579055157,-193.67417593,0.00015342,2]
[322995297,1713579055166,-500.0,0.00015342,2]
[322995298,1713579055175,-500.0,0.00015342,2]
[322995299,1713579055185,-647.93,0.00015342,2]
[322995300,1713579055195,-500.0,0.00015342,2]
[322995301,1713579055204,-2516.71,0.00015342,2]
[322995302,1713579055213,-500.0,0.00015342,2]
[322995303,1713579055222,-1540.63,0.00015342,2]
[322995304,1713579055231,-500.0,0.00015342,2]
[322995305,1713579055241,-500.0,0.00015342,2]
[322995306,1713579055250,-527.61,0.00015342,2]
[322995307,1713579055259,-2896.01,0.00015342,2]
[322995308,1713579055268,-31377.79,0.00015342,2]
[322995309,1713579055278,-500.0,0.00015342,2]
[322995310,1713579055287,-500.0,0.00015342,2]
[322995311,1713579055295,-622.22,0.00015342,2]
[322995312,1713579055305,-2235.44,0.00015342,2]
[322995313,1713579055314,-500.0,0.00015342,2]
[322995314,1713579055324,-500.0,0.00015342,2]
[322995315,1713579055333,-202.86,0.00015342,2]
[322995316,1713579055342,-2660.59,0.00015342,2]
[322995317,1713579055352,-6198.29,0.00015342,2]
[322995318,1713579055361,-1373.17,0.00015342,2]
[322995319,1713579055371,-1878.21,0.00015342,2]
[322995320,1713579055380,-500.0,0.00015342,2]
[322995321,1713579055389,-500.0,0.00015342,2]
[322995322,1713579055399,-500.0,0.00015342,2]
[322995323,1713579055408,-600.01,0.00015342,2]
[322995324,1713579055417,-202.86,0.00015342,2]
[322995325,1713579055427,-629.71,0.00015342,2]
[322995326,1713579055439,-1876.59,0.00015342,2]
[322995327,1713579055448,-500.0,0.00015342,2]
[322995328,1713579055457,-736.36,0.00015342,2]
[322995329,1713579055466,-500.0,0.00015342,2]
[322995330,1713579055477,-3563.56,0.00015342,2]
[322995331,1713579055487,-500.0,0.00015342,2]
[322995332,1713579055497,-2526.81,0.00015342,2]
[322995333,1713579055507,-7287.71,0.00015342,2]
[322995334,1713579055517,-4390.82,0.00015342,2]
[322995335,1713579055526,-500.0,0.00015342,2]
[322995336,1713579055537,-500.0,0.00015342,2]
[322995337,1713579055548,-500.0,0.00015342,2]
[322995338,1713579055559,-885.81,0.00015342,2]
[322995339,1713579055569,-734.27,0.00015342,2]
[322995340,1713579055581,-2331.97,0.00015342,2]
[322995341,1713579055592,-927.6,0.00015342,2]
[322995342,1713579055601,-3228.71,0.00015342,2]
[322995343,1713579055611,-500.0,0.00015342,2]
[322995344,1713579055622,-500.0,0.00015342,2]
[322995345,1713579055634,-503.41,0.00015342,2]
[322995346,1713579055644,-2776.49,0.00015342,2]
[322995347,1713579055656,-500.0,0.00015342,2]
[322995348,1713579055667,-1625.99,0.00015342,2]
[322995349,1713579055679,-4502.0,0.00015342,2]
[322995350,1713579055691,-500.0,0.00015342,2]
[322995351,1713579055701,-1700.79,0.00015342,2]
[322995352,1713579055710,-500.0,0.00015342,2]
[322995353,1713579055719,-3071.27,0.00015342,2]
[322995354,1713579055730,-22085.14,0.00015342,2]
[322995355,1713579055740,-500.0,0.00015342,2]
[322995356,1713579055750,-193.68066663,0.00015342,2]
[322995357,1713579055761,-500.0,0.00015342,2]
[322995358,1713579055770,-847.2,0.00015342,2]
[322995359,1713579055780,-500.0,0.00015342,2]
[322995360,1713579055790,-1833.02,0.00015342,2]
[322995361,1713579055799,-500.0,0.00015342,2]
[322995362,1713579055808,-500.0,0.00015342,2]
[322995363,1713579055818,-7799.49,0.00015342,2]
[322995364,1713579055828,-663.78,0.00015342,2]
[322995365,1713579055838,-500.0,0.00015342,2]
[322995366,1713579055848,-1822.31,0.00015342,2]
[322995367,1713579055857,-500.0,0.00015342,2]
[322995368,1713579055867,-500.0,0.00015342,2]
[322995369,1713579055877,-2709.76,0.00015342,2]
[322995370,1713579055887,-500.0,0.00015342,2]
[322995371,1713579055896,-822.33,0.00015342,2]
[322995372,1713579055905,-769.49,0.00015342,2]
[322995373,1713579055914,-501.92812672,0.00015342,2]
[322995374,1713579055923,-1183.33,0.00015342,2]
[322995375,1713579055933,-500.0,0.00015342,2]
[322995376,1713579055945,-737.63,0.00015342,2]
[322995377,1713579055955,-500.0,0.00015342,2]
[322995378,1713579055966,-968.97,0.00015342,2]
[322995379,1713579055975,-2714.09,0.00015342,2]
[322995380,1713579055985,-2600.65,0.00015342,2]
[322995381,1713579055994,-1108.56,0.00015342,2]
[322995382,1713579056003,-2489.83,0.00015342,2]
[322995383,1713579056013,-1347.89,0.00015342,2]
[322995384,1713579056022,-13030.37,0.00015342,2]
[322995385,1713579056032,-500.0,0.00015342,2]
[322995386,1713579056040,-608.85,0.00015342,2]
[322995387,1713579056050,-500.0,0.00015342,2]